fUST/lending_fUST_20260121
["ID","MTS","AMOUNT","RATE_DAILY","PERIOD"]
[402911902,1768986638888,-500.0,0.00015898,2]
[402911903,1768986638898,-500.0,0.00015898,2]
[402911905,1768986638908,-295.41765991,0.00015898,2]
[402911907,1768986638918,-500.0,0.00015898,2]
[402911909,1768986638929,-500.0,0.00015898,2]
[402911911,1768986638940,-500.0,0.00015898,2]
[402911912,1768986638950,-500.0,0.00015898,2]
[402911914,1768986638960,-500.0,0.00015898,2]
[402911916,1768986638971,-500.0,0.00015898,2]
[402911918,1768986638981,-371.54942222,0.00015898,2]
[402911920,1768986638991,-500.0,0.00015898,2]
[402911921,1768986639001,-644.55466342,0.00015898,2]
[402911923,1768986639012,-500.0,0.00015898,2]
[402911925,1768986639022,-500.0,0.00015898,2]
[402911927,1768986639033,-500.0,0.00015898,2]
[402911928,1768986639044,-500.0,0.00015898,2]
[402911930,1768986639054,-570.4120774,0.00015898,2]
[402911932,1768986639065,-500.0,0.00015898,2]
[402911934,1768986639075,-500.0,0.00015898,2]
[402911936,1768986639086,-587.72960851,0.00015898,2]
[402911937,1768986639095,-500.0,0.00015898,2]
[402911939,1768986639106,-500.0,0.00015898,2]
[402911941,1768986639116,-234.01413472,0.00015899,2]
[402911943,1768986639127,-364.46621369,0.00015899,2]
[402911945,1768986639138,-156.0,0.00015899,2]
[402911947,1768986639148,-601199.81006686,0.000159,2]
[402911949,1768986639161,-52230.46648143,0.000159,2]
[402912117,1768986643754,-54.73843098,0.000159,2]
[402912118,1768986643765,-5660.686543,0.000159,2]
[402912120,1768986645052,-12607.86597848,0.000159,2]
[402912121,1768986645067,-1877.8589011,0.000159,2]
[402912132,1768986711972,150.0,8.778e-05,2]
[402912133,1768986712366,150.0,9.196e-05,2]
[402920207,1768987650231,-811.58690884,0.0001264,2]
[402920209,1768987650263,-4083.85106684,0.00012768,2]
[402920211,1768987650296,-152.19083582,0.00012962,2]
[402921059,1768987831723,-339.83814567,0.00012832,2]
[402921060,1768987831732,-602.0,0.00012832,2]
[402921062,1768987831742,-226.61392181,0.00013061,2]
[402921063,1768987831751,-158.26417421,0.00013699,2]
[402921065,1768987831760,-158.06409328,0.00013699,2]
[402921067,1768987831769,-500.0,0.00013699,2]
[402921069,1768987831778,-1000.0,0.00013881,2]
[402921070,1768987831787,-1100.804246,0.00014084,2]
[402921071,1768987831797,-1000.0,0.00014247,2]
[402921072,1768987831807,-719.6259238,0.00014848,2]
[402921074,1768987831815,-2260.32477162,0.00015,2]
[402921076,1768987831825,-267.40442773,0.00015061,2]
[402921078,1768987831834,-300.0,0.00015402,2]
[402921080,1768987831843,-369.58994508,0.00015404,2]
[402921082,1768987831851,-1476.88142054,0.00015404,2]
[402921084,1768987831861,-816.86656826,0.00015404,2]
[402921086,1768987831870,-3264.19880678,0.00015404,2]
[402921088,1768987831880,-287.52551206,0.00015464,2]
[402921090,1768987831889,-265.6024273,0.00015679,2]
[402921371,1768987840242,-339.83814567,0.00015679,2]
[402921405,1768987842954,-811.58690881,0.00015679,2]
[402921416,1768987860389,150.0,8.758e-05,2]
[402921417,1768987862234,150.0,9.175e-05,2]
[402921418,1768987862268,150.0,9.593e-05,2]
[402921419,1768987862295,150.0,0.0001001,2]
[402921420,1768987862595,150.0,0.00010427,2]
[402921421,1768987863196,66.62088355,0.00010844,2]
[402923854,1768988526876,66.44577108,0.0001,2]
[402925131,1768988621894,10000.0,8.876e-05,2]
[402925224,1768988629288,10000.0,0.000154,120]
[402925313,1768988639288,10000.0,8.876e-05,2]
[402925465,1768988652582,10000.0,8.876e-05,2]
[402925636,1768988668916,1293.0,0.0001,10]
[402926982,1768988833103,-504.76288115,9.703e-05,2]
[402928253,1768988962088,-685.52031531,9.606e-05,2]
[402928255,1768988962111,-228.41940119,9.654e-05,2]
[402928256,1768988962131,-3786.5275665,9.703e-05,2]
[402928297,1768988965113,-197.5315497,9.703e-05,2]
[402928349,1768988968087,-511.17800265,9.703e-05,2]
[402928350,1768988968109,-563.0,0.00010211,2]
[402928352,1768988968130,-269.5348934,0.00011654,2]
[402929109,1768989031859,-300.0,0.00013125,2]
[402929110,1768989031869,-554.08839603,0.00013125,2]
[402929111,1768989031881,-51.91160397,0.00013125,2]
[402929112,1768989031891,-300.0,0.00013125,2]
[402929113,1768989031901,-500.0,0.00013126,2]
[402929114,1768989031910,-500.0,0.00013126,2]
[402929115,1768989031919,-500.0,0.00013126,2]
[402929117,1768989031929,-500.0,0.00013126,2]
[402929119,1768989031938,-500.0,0.00013126,2]
[402929120,1768989031948,-500.0,0.00013126,2]
[402929121,1768989031957,-500.0,0.00013126,2]
[402929122,1768989031966,-500.0,0.00013126,2]
[402929123,1768989031975,-500.0,0.00013126,2]
[402929124,1768989031984,-500.0,0.00013126,2]
[402929125,1768989031993,-500.0,0.00013126,2]
[402929126,1768989032002,-500.0,0.00013126,2]
[402929127,1768989032011,-500.0,0.00013126,2]
[402929128,1768989032020,-310.71744619,0.00013126,2]
[402929129,1768989032028,-500.0,0.00013126,2]
[402929130,1768989032037,-500.0,0.00013126,2]
[402929131,1768989032047,-500.0,0.00013126,2]
[402929132,1768989032056,-320.86643998,0.00013126,2]
[402929133,1768989032065,-500.0,0.00013126,2]
[402929134,1768989032074,-500.0,0.00013126,2]
[402929135,1768989032083,-500.0,0.00013126,2]
[402929136,1768989032092,-336.41194695,0.00013126,2]
[402929137,1768989032101,-500.0,0.00013126,2]
[402929138,1768989032110,-500.0,0.00013126,2]
[402929139,1768989032119,-405.15080036,0.00013126,2]
[402929140,1768989032128,-31083.5721237,0.00013127,2]
[402929141,1768989032138,-2853.68966028,0.00013173,2]
[402929142,1768989032151,-310.65038561,0.00013655,2]
[402929143,1768989032161,-420.0,0.00014392,2]
[402929144,1768989032169,-161.837078,0.00015068,2]
[402929145,1768989032179,-12627.62653501,0.00015068,2]
[402929146,1768989032193,-458.23756058,0.00015068,2]
[402929173,1768989037983,-12469.87792517,0.00015068,2]
[402929175,1768989037992,-2853.68966027,0.00015191,2]
[402929177,1768989038002,-9494.50079242,0.00015262,2]
[402929566,1768989046124,-836.54342547,0.00015262,2]
[402929577,1768989443562,-4504.4647426,0.00012994,2]
[402929578,1768989443592,-223.42365105,0.00013207,2]
[402929579,1768989443619,-3131.65129544,0.00013207,2]
[402929580,1768989443650,-300.0,0.00013287,2]
[402929581,1768989443681,-2859.99749161,0.00013288,2]
[402929582,1768989443694,-2140.00250839,0.00013288,2]
[402929583,1768989443703,-321.63849569,0.000136,2]
[402929584,1768989443714,-500.0,0.00013753,2]
[402929585,1768989443724,-357.43095921,0.00013753,2]
[402929586,1768989443734,-500.0,0.00013753,2]
[402929587,1768989443745,-500.0,0.00013753,2]
[402929588,1768989443755,-185.39277931,0.00013753,2]
[402929589,1768989443767,-129.15341306,0.00013753,2]
[402929590,1768989443776,-94.27023799,0.00013754,2]
[402929591,1768989443788,-3131.65129544,0.00013754,2]
[402929592,1768989443799,-300.0,0.00013754,2]
[402929593,1768989443810,-5000.0,0.00013754,2]
[402929606,1768990032139,-218.95517803,0.00013141,2]
[402929607,1768990032164,-134.79266084,0.00013273,2]
[402929609,1768990230604,150.0,8.368e-05,2]
[402929610,1768990230991,150.0,8.767e-05,2]
[402929628,1768990232070,-304.00893156,0.0001275,2]
[402929630,1768990232081,-310.34508693,0.00012879,2]
[402929898,1768990238156,-291.65491307,0.00012879,2]
[402929900,1768990238165,-214.57607447,0.00013076,2]
[402929902,1768990238176,-500.0,0.00013273,2]
[402929904,1768990238186,-550.402123,0.00013699,2]
[402929906,1768990238195,-300.0,0.00013748,2]
[402929908,1768990238204,-500.0,0.00013749,2]
[402929910,1768990238213,-173.82688946,0.00013749,2]
[402929924,1768990238338,-326.17311054,0.00013749,2]
[402929926,1768990238347,-500.0,0.00013749,2]
[402929928,1768990238357,-500.0,0.00013749,2]
[402929930,1768990238367,-500.0,0.00013749,2]
[402929932,1768990238376,-618.16210244,0.00013749,2]
[402929934,1768990238385,-500.0,0.00013749,2]
[402929936,1768990238394,-500.0,0.00013749,2]
[402929938,1768990238403,-500.0,0.00013749,2]
[402929940,1768990238412,-500.0,0.00013749,2]
[402929942,1768990238421,-365.51520341,0.00013749,2]
[402929944,1768990238430,-500.0,0.00013749,2]
[402929946,1768990238439,-500.0,0.00013749,2]
[402929948,1768990238448,-500.0,0.00013749,2]
[402929950,1768990238458,-500.0,0.00013749,2]
[402929952,1768990238467,-500.0,0.00013749,2]
[402929954,1768990238477,-500.0,0.00013749,2]
[402929956,1768990238486,-500.0,0.00013749,2]
[402929958,1768990238495,-500.0,0.00013749,2]
[402929960,1768990238505,-500.0,0.00013749,2]
[402929962,1768990238514,-500.0,0.00013749,2]
[402929964,1768990238523,-500.0,0.00013749,2]
[402929966,1768990238533,-500.0,0.00013749,2]
[402929968,1768990238542,-250.0,0.00013749,2]
[402929971,1768990238552,-500.0,0.00013749,2]
[402929973,1768990238562,-500.0,0.00013749,2]
[402929975,1768990238571,-500.0,0.00013749,2]
[402929977,1768990238580,-500.0,0.00013749,2]
[402929979,1768990238589,-500.0,0.00013749,2]
[402929981,1768990238599,-600.79034842,0.00013749,2]
[402929982,1768990238608,-11168.45343023,0.0001375,2]
[402929985,1768990238617,-210.186,0.00013753,2]
[402929987,1768990238627,-3129.39722157,0.00013754,2]
[402929989,1768990238636,-13704.3516068,0.00013923,2]
[402929990,1768990238645,-2429.54758916,0.00014847,2]
[402929992,1768990238654,-2150.738,0.00014947,2]
[402929994,1768990238664,-15911.51725921,0.00014947,2]
[402929996,1768990238674,-458.79883591,0.00014999,2]
[402929998,1768990238682,-5061.66073501,0.00015,2]
[402930000,1768990238692,-420.0,0.00015066,2]
[402930003,1768990238702,-253.19976787,0.00015076,2]
[402930005,1768990238712,-151.0,0.000152,2]
[402930007,1768990238721,-151.0,0.000152,2]
[402930009,1768990238730,-151.0,0.000152,2]
[402930011,1768990238739,-151.0,0.000152,2]
[402930012,1768990238749,-151.0,0.00015253,2]
[402930014,1768990238758,-162.380719,0.00015253,2]
[402930016,1768990238768,-168.3888056,0.00015253,2]
[402930018,1768990238778,-174.61919141,0.00015253,2]
[402930020,1768990238788,-181.08010149,0.00015253,2]
[402930022,1768990238798,-187.78006525,0.00015253,2]
[402930024,1768990238808,-445.202766,0.00015253,2]
[402930026,1768990238817,-194.72792766,0.00015253,2]
[402930029,1768990238827,-201.93286099,0.00015253,2]
[402930031,1768990238837,-209.40437684,0.00015253,2]
[402930033,1768990238847,-217.15233878,0.00015253,2]
[402930035,1768990238857,-225.18697532,0.00015253,2]
[402930037,1768990238866,-233.51889341,0.00015253,2]
[402930039,1768990238876,-242.15909246,0.00015253,2]
[402930040,1768990238888,-251.11897888,0.00015253,2]
[402930043,1768990238898,-260.4103811,0.00015253,2]
[402930044,1768990238907,-270.0455652,0.00015253,2]
[402930046,1768990238917,-280.03725112,0.00015253,2]
[402930048,1768990238928,-290.39862941,0.00015253,2]
[402930051,1768990238938,-301.1433787,0.00015253,2]
[402930053,1768990238948,-151.0,0.000153,2]
[402930054,1768990238959,-151.0,0.000153,2]
[402930057,1768990238968,-151.0,0.000153,2]
[402930058,1768990238978,-151.0,0.000153,2]
[402930060,1768990238987,-151.0,0.000153,2]
[402930062,1768990238996,-151.0,0.000153,2]
[402930065,1768990239006,-151.0,0.000153,2]
[402930067,1768990239018,-151.0,0.000153,2]
[402930069,1768990239028,-151.0,0.000153,2]
[402930071,1768990239038,-151.0,0.000153,2]
[402930073,1768990239048,-151.0,0.000153,2]
[402930075,1768990239058,-151.0,0.000153,2]
[402930077,1768990239068,-247.88101011,0.000154,2]
[402930079,1768990239077,-155.42067258,0.000154,2]
[402930081,1768990239088,-151.65803186,0.000154,2]
[402930083,1768990239098,-2230.315306,0.00015495,2]
[402930085,1768990239107,-2600.6531404,0.0001552,2]
[402930087,1768990239117,-2404.81761572,0.00015734,2]
[402930089,1768990239130,-653.03655298,0.00015734,2]
[402930091,1768990239139,-503.7789656,0.00015795,2]
[402930093,1768990239148,-206.88706778,0.00015801,2]
[402930095,1768990239158,-461.67526834,0.00015801,2]
[402930097,1768990239168,-816.90886266,0.00015898,2]
[402930099,1768990239178,-3264.36781517,0.00015898,2]
[402930101,1768990239188,-1286.55398278,0.00015898,2]
[402930103,1768990239197,-699.58294589,0.00015898,2]
[402930105,1768990239207,-2798.33178357,0.00015898,2]
[402930107,1768990239216,-2894.74646125,0.00015898,2]
[402930109,1768990239226,-166.0,0.000159,2]
[402930111,1768990239235,-580.2841517,0.00015914,2]
[402930113,1768990239245,-247.88101011,0.00015953,9]
[402930115,1768990239254,-1500.0,0.00016,10]
[402930117,1768990239263,-1500.0,0.00016,10]
[402930119,1768990239272,-1500.0,0.00016,10]
[402930121,1768990239282,-1500.0,0.00016,10]
[402930122,1768990239291,-1500.0,0.00016,10]
[402930124,1768990239300,-1500.0,0.00016,10]
[402930126,1768990239309,-1500.0,0.00016,10]
[402930128,1768990239318,-1500.0,0.00016,10]
[402930131,1768990239328,-1500.0,0.00016,10]
[402930132,1768990239337,-1500.0,0.00016,10]
[402930133,1768990239347,-1500.0,0.00016,10]
[402930134,1768990239356,-1500.0,0.00016,10]
[402930135,1768990239365,-1500.0,0.00016,10]
[402930137,1768990239374,-1607.9715693,0.00016,10]
[402930138,1768990239383,-155.0,0.00016,2]
[402930139,1768990239392,-1494.213928,0.00016,2]
[402930140,1768990239400,-2312.83697232,0.00016043,2]
[402930141,1768990239410,-682.2994903,0.00016138,2]
[402930142,1768990239419,-478.75725327,0.00016349,2]
[402930143,1768990239429,-500.0,0.00016438,2]
[402930144,1768990239439,-267.0019044,0.00016438,2]
[402930145,1768990239449,-500.0,0.00016438,2]
[402930146,1768990239458,-185.0,0.0001644,2]
[402930147,1768990239467,-302.0,0.00016495,2]
[402930148,1768990239477,-247.88101011,0.00016506,17]
[402930149,1768990239486,-587.0,0.0001651,2]
[402930150,1768990239495,-181.119152,0.00016591,2]
[402930151,1768990239505,-1738.02072706,0.00016591,2]
[402930152,1768990239515,-2429.54758916,0.00016626,2]
[402930153,1768990239524,-152.071447,0.00016723,2]
[402930154,1768990239534,-153.0,0.0001686,2]
[402930155,1768990239543,-150.0,0.00016877,2]
[402930156,1768990239553,-150.0,0.00016877,2]
[402930157,1768990239562,-150.0,0.00016877,2]
[402930158,1768990239572,-629.0,0.00016877,2]
[402930159,1768990239581,-2148.0,0.00016877,2]
[402930160,1768990239591,-1368.0,0.00016877,2]
[402930161,1768990239600,-417.0,0.00016877,2]
[402930162,1768990239609,-715.0,0.00016877,2]
[402930163,1768990239618,-200.628,0.00016877,2]
[402930164,1768990239628,-359.7702905,0.00016897,2]
[402930165,1768990239638,-160.0,0.00016975,2]
[402930166,1768990239647,-1041.66666667,0.00016977,2]
[402930167,1768990239657,-500.0,0.00016986,2]
[402930168,1768990239666,-247.88101011,0.00017059,25]
[402930169,1768990239675,-291.82346127,0.00017076,2]
[402930170,1768990239685,-5146.21593112,0.00017207,2]
[402930171,1768990239694,-729.0,0.000174,2]
[402930172,1768990239703,-5483.72501753,0.00017498,2]
[402930173,1768990239715,-1682.51932336,0.00017498,2]
[402930193,1768990243320,-459.43160703,0.00017498,2]
[402930201,1768990246315,-1204.20331397,0.00017498,2]
[402930202,1768990295455,150.0,8.412e-05,2]
[402930203,1768990295881,40.0,8.812e-05,2]
[402930204,1768990295915,110.0,8.812e-05,2]
[402930205,1768990365821,150.0,8.41e-05,2]
[402930206,1768990366219,150.0,8.81e-05,2]
[402930209,1768990434409,150.0,8.396e-05,2]
[402930210,1768990434854,150.0,8.795e-05,2]
[402930211,1768990500772,150.0,8.393e-05,2]
[402930212,1768990501166,150.0,8.792e-05,2]
[402930214,1768990760529,150.0,8.391e-05,2]
[402930215,1768990760763,150.0,8.79e-05,2]
[402930216,1768990826983,150.0,8.364e-05,2]
[402930217,1768990827385,150.0,8.762e-05,2]
[402930218,1768990891625,150.0,8.39e-05,2]
[402930231,1768991365139,-549.0,9.19e-05,2]
[402930232,1768991365161,-74.03996485,9.246e-05,2]
[402930233,1768991373145,-5000.0,9.098e-05,2]
[402930234,1768991373166,-133.24350542,9.246e-05,2]
[402930235,1768991373188,-150.0,9.53e-05,2]
[402930236,1768991373208,-244.59449492,0.00011246,2]
[402930352,1768991438293,-223.0,0.00013113,2]
[402930354,1768991438302,-606.0,0.00013113,2]
[402930356,1768991438312,-281.90551957,0.00013246,2]
[402930358,1768991438323,-1000.0,0.00013827,2]
[402930360,1768991438333,-734.05981933,0.00014641,2]
[402930362,1768991438346,-156.43170837,0.00014641,2]
[402930364,1768991438356,-161.837078,0.00015068,2]
[402930366,1768991438366,-319.21654422,0.00015246,2]
[402930368,1768991438376,-300.0,0.00016128,2]
[402930370,1768991438386,-300.0,0.00016128,2]
[402930372,1768991438395,-300.0,0.00016128,2]
[402930374,1768991438405,-263.8218168,0.00016128,2]
[402930377,1768991438420,-369.43670899,0.00016128,2]
[402930379,1768991438431,-566.74147421,0.00016128,2]
[402930381,1768991438440,-1088.29318689,0.00016129,2]
[402930383,1768991438451,-1754.12504223,0.00016129,2]
[402930627,1768991443626,-3447.5320374,0.00016129,2]
[402930629,1768991443635,-1532.69877451,0.00016129,2]
[402930644,1768991446440,-6500.22265547,0.00016129,2]
[402930645,1768991446450,-190.07416802,0.00016179,2]
[402930646,1768991446459,-500.0,0.00016179,2]
[402930647,1768991446469,-500.0,0.00016179,2]
[402930648,1768991446478,-500.0,0.00016179,2]
[402930649,1768991446487,-500.0,0.00016179,2]
[402930650,1768991446497,-500.0,0.00016179,2]
[402930651,1768991446506,-500.0,0.00016179,2]
[402930652,1768991446515,-500.0,0.00016179,2]
[402930653,1768991446525,-623.94613371,0.00016179,2]
[402930654,1768991446534,-500.0,0.00016179,2]
[402930655,1768991446543,-500.0,0.00016179,2]
[402930657,1768991446553,-500.0,0.00016179,2]
[402930659,1768991446563,-451.14971961,0.00016179,2]
[402930660,1768991446571,-500.0,0.00016179,2]
[402930661,1768991446580,-636.01770268,0.00016179,2]
[402930662,1768991446840,-500.0,0.00016179,2]
[402930663,1768991446851,-500.0,0.00016179,2]
[402930664,1768991446861,-500.0,0.00016179,2]
[402930665,1768991446869,-500.0,0.00016179,2]
[402930666,1768991446879,-500.0,0.00016179,2]
[402930667,1768991446889,-502.77387017,0.00016179,2]
[402930668,1768991446899,-500.0,0.00016179,2]
[402930669,1768991446908,-500.0,0.00016179,2]
[402930670,1768991446918,-500.0,0.00016179,2]
[402930671,1768991446927,-500.0,0.00016179,2]
[402930672,1768991446936,-78.64729649,0.00016179,2]
[402930673,1768991447034,-421.35270351,0.00016179,2]
[402930674,1768991447043,-186.76221365,0.00016179,2]
[402930677,1768991596477,150.0,8.677e-05,2]
[402930678,1768991661991,150.0,8.689e-05,2]
[402930679,1768991728274,150.0,8.455e-05,2]
[402930680,1768991728342,150.0,8.857e-05,2]
[402930696,1768992170609,-392.61640513,0.00014759,2]
[402930697,1768992170639,-418.97050371,0.00014759,2]
[402930698,1768992199821,-189.26728641,0.00014833,2]
[402930699,1768992199853,-14.08183231,0.00014908,2]
[402930700,1768992330130,-192.85011643,0.00014759,2]
[402930703,1768992435072,-533.09276408,0.00014759,2]
[402930743,1768992632529,-3343.82635402,0.00014635,2]
[402930745,1768992632539,-185.48194068,0.00014783,2]
[402930746,1768992632548,-275.201062,0.00014807,2]
[402930749,1768992632557,-205.12,0.00015,21]
[402930751,1768992632566,-1822.16069187,0.00015731,2]
[402930753,1768992632575,-400.92755009,0.00015731,2]
[402930755,1768992632584,-300.0,0.00015732,2]
[402930758,1768992632593,-300.0,0.00015732,2]
[402930761,1768992632602,-300.0,0.00015732,2]
[402930763,1768992632611,-1200.0,0.00015732,2]
[402930765,1768992632620,-13621.63436843,0.00015733,2]
[402930788,1768992638431,-960.88302587,0.00015733,2]
[402930801,1768992638537,-1177.8415112,0.00015733,2]
[402930803,1768992638548,-2662.80867801,0.00015733,2]
[402931020,1768992643597,-626.16112549,0.00015733,2]
[402931033,1768992646580,-3699.52282203,0.00015733,2]
[402931034,1768992646592,-4091.93179607,0.00015733,2]
[402931035,1768992646631,-21.42779071,0.00015733,2]
[402931036,1768992646689,-461.02753643,0.00015733,2]
[402931037,1768992646779,-59.23252934,0.00015733,2]
[402931079,1768993769135,-503.88663725,0.0001402,2]
[402931096,1768993819530,2597.35,8.876e-05,2]
[402931131,1768993831605,-5000.0,0.00013879,2]
[402931133,1768993831615,-1200.0,0.00014019,2]
[402931135,1768993831625,-620.0,0.0001402,2]
[402931137,1768993831634,-191.46564408,0.00014091,2]
[402931139,1768993831643,-272.3701998,0.00014162,2]
[402931141,1768993831653,-204.8774705,0.00014638,2]
[402931143,1768993831662,-1000.0,0.00014649,2]
[402931145,1768993831672,-300.0,0.00015609,2]
[402931147,1768993831681,-300.0,0.00015609,2]
[402931149,1768993831691,-300.0,0.00015609,2]
[402931151,1768993831701,-300.0,0.00015609,2]
[402931153,1768993831710,-1594.39060543,0.0001561,2]
[402931155,1768993831720,-15668.56058807,0.00015613,2]
[402931156,1768993831730,-609.44571357,0.00015613,2]
[402931159,1768993831746,-15.49836946,0.00015613,2]
[402931161,1768993831756,-342.46384053,0.00015613,2]
[402931163,1768993831767,-157.53615947,0.00015613,2]
[402931165,1768993831778,-500.0,0.00015613,2]
[402931166,1768993831787,-500.0,0.00015613,2]
[402931167,1768993831796,-500.0,0.00015613,2]
[402931168,1768993831806,-500.0,0.00015613,2]
[402931170,1768993831815,-500.0,0.00015613,2]
[402931172,1768993831825,-500.0,0.00015613,2]
[402931174,1768993831834,-500.0,0.00015613,2]
[402931176,1768993831843,-500.0,0.00015613,2]
[402931178,1768993831852,-235.02099857,0.00015613,2]
[402931416,1768993839840,-264.72953712,0.00015613,2]
[402931418,1768993839850,-500.0,0.00015613,2]
[402931419,1768993839858,-500.0,0.00015613,2]
[402931420,1768993839867,-500.0,0.00015613,2]
[402931421,1768993839877,-500.0,0.00015613,2]
[402931422,1768993839886,-500.0,0.00015613,2]
[402931423,1768993839895,-500.0,0.00015613,2]
[402931425,1768993839905,-500.0,0.00015613,2]
[402931426,1768993839914,-500.0,0.00015613,2]
[402931427,1768993839923,-500.0,0.00015613,2]
[402931428,1768993839933,-235.27046288,0.00015613,2]
[402931443,1768993842736,-273.44358882,0.00015457,2]
[402931608,1768995037886,-1168.4940225,0.00013426,2]
[402931610,1768995037896,-5000.0,0.00013562,2]
[402931612,1768995037905,-613.0,0.00013562,2]
[402931614,1768995037914,-214.40178069,0.0001363,2]
[402931616,1768995037923,-500.0,0.00013699,2]
[402931618,1768995037933,-500.0,0.00014247,2]
[402931620,1768995037942,-686.23870346,0.00014364,2]
[402931622,1768995037951,-1200.0,0.00014473,2]
[402931624,1768995037960,-300.0,0.00014898,2]
[402931626,1768995037969,-300.0,0.00014898,2]
[402931628,1768995037979,-4713.77494991,0.00014899,2]
[402931630,1768995037988,-500.0,0.00014997,2]
[402931632,1768995037998,-500.0,0.00014997,2]
[402931634,1768995038008,-500.0,0.00014997,2]
[402931636,1768995038017,-500.0,0.00014997,2]
[402931638,1768995038026,-538.23163698,0.00014997,2]
[402931640,1768995038037,-500.0,0.00014997,2]
[402931642,1768995038047,-500.0,0.00014997,2]
[402931644,1768995038057,-500.0,0.00014997,2]
[402931646,1768995038068,-500.0,0.00014997,2]
[402931648,1768995038078,-500.0,0.00014997,2]
[402931650,1768995038089,-500.0,0.00014997,2]
[402931652,1768995038099,-500.0,0.00014997,2]
[402931654,1768995038108,-500.0,0.00014997,2]
[402931656,1768995038118,-500.0,0.00014997,2]
[402931658,1768995038127,-500.0,0.00014997,2]
[402931660,1768995038136,-500.0,0.00014997,2]
[402931662,1768995038145,-500.0,0.00014997,2]
[402931664,1768995038155,-500.0,0.00014997,2]
[402931666,1768995038164,-500.0,0.00014997,2]
[402931667,1768995038173,-500.0,0.00014997,2]
[402931670,1768995038184,-500.0,0.00014997,2]
[402931671,1768995038194,-500.0,0.00014997,2]
[402931673,1768995038204,-222.22879505,0.00014997,2]
[402931675,1768995038214,-500.0,0.00014997,2]
[402931677,1768995038224,-500.0,0.00014997,2]
[402931679,1768995038233,-500.0,0.00014997,2]
[402931681,1768995038244,-500.0,0.00014997,2]
[402931683,1768995038253,-500.0,0.00014997,2]
[402931685,1768995038263,-500.0,0.00014997,2]
[402931687,1768995038272,-500.0,0.00014997,2]
[402931689,1768995038282,-396.22171732,0.00014997,2]
[402931691,1768995038291,-500.0,0.00014997,2]
[402931693,1768995038300,-500.0,0.00014997,2]
[402931695,1768995038310,-500.0,0.00014997,2]
[402931697,1768995038320,-500.0,0.00014997,2]
[402931699,1768995038330,-500.0,0.00014997,2]
[402931701,1768995038339,-500.0,0.00014997,2]
[402931703,1768995038349,-500.0,0.00014997,2]
[402931705,1768995038358,-500.38567416,0.00014997,2]
[402931707,1768995038368,-500.0,0.00014997,2]
[402931709,1768995038378,-500.0,0.00014997,2]
[402931711,1768995038388,-500.0,0.00014997,2]
[402931713,1768995038398,-500.0,0.00014997,2]
[402931715,1768995038408,-500.0,0.00014997,2]
[402931717,1768995038418,-500.0,0.00014997,2]
[402931719,1768995038427,-500.0,0.00014997,2]
[402931721,1768995038437,-500.0,0.00014997,2]
[402931723,1768995038446,-500.0,0.00014997,2]
[402931725,1768995038455,-500.0,0.00014997,2]
[402931727,1768995038465,-500.0,0.00014997,2]
[402931730,1768995038475,-500.0,0.00014997,2]
[402931732,1768995038487,-500.0,0.00014997,2]
[402931733,1768995038497,-500.0,0.00014997,2]
[402931734,1768995038506,-500.0,0.00014997,2]
[402931735,1768995038515,-151.752773,0.00014998,2]
[402931736,1768995038527,-437.46085812,0.00014999,2]
[402931737,1768995038538,-43868.39374313,0.00015,2]
[402931738,1768995038548,-1019.81145669,0.00015,2]